bitfinex/quotes_ETHUSD_20251119
["timestamp","ask_amount","ask_price","bid_price","bid_amount"]
[1763580015229,0.4751,2890.1,2888.9,0.001]
[1763580015230,0.4751,2889.9,2888.9,0.001]
[1763580017051,3.93543849,2889.9,2888.9,0.001]
[1763580017252,0.39354385,2889.8,2888.9,0.001]
[1763580017460,0.86864385,2889.8,2888.9,0.001]
[1763580017645,3.648,2889.7,2888.9,0.001]
[1763580017855,0.4751,2889.7,2888.9,0.001]
[1763580018378,4.19947043,2890.2,2888.9,0.4894]
[1763580018379,0.4751,2890.1,2888.9,0.4894]
[1763580018594,0.4751,2890.5,2888.9,0.4894]
[1763580018795,3.93471854,2890.5,2888.9,0.4894]
[1763580019088,1.30046449,2890.4,2888.9,0.4894]
[1763580019286,1.77556449,2890.4,2888.9,0.4894]
[1763580019487,0.4751,2890.3,2888.9,0.4894]
[1763580021492,0.1964,2890.7,2889.1,0.90699264]
[1763580021702,0.4751,2890.6,2889.1,0.90699264]
[1763580021904,1.3248203,2890.6,2889.2,0.6398]
[1763580022398,0.4751,2890.5,2889.3,0.4884]
[1763580024488,3.93470934,2890.5,2889.3,0.4884]
[1763580025004,0.4751,2890.4,2889.3,0.4884]
[1763580025172,0.4751,2890.4,2889.2,0.1514]
[1763580026184,0.4751,2890.4,2888.9,0.001]
[1763580026987,3.45984845,2890.3,2888.9,0.001]
[1763580027188,0.4751,2890.4,2889.1,0.405504]
[1763580027613,0.6535,2890.7,2889.3,0.405504]
[1763580027812,0.6535,2890.7,2889.4,0.90699264]
[1763580028015,0.6535,2890.7,2889.4,1.40049264]
[1763580028303,0.6535,2890.7,2889.5,0.4935]
[1763580028509,0.4571,2890.6,2889.5,0.4935]
[1763580028897,0.4591,2890.6,2889.5,0.4935]
[1763580029407,0.87058072,2890.6,2889.2,0.6449]
[1763580029610,3.91862089,2890.6,2889.3,0.4935]
[1763580029811,0.4571,2890.5,2889.3,0.4935]
[1763580030318,0.002,2890.6,2889.4,1.31249664]
[1763580030807,0.4571,2890.5,2889.5,0.4935]
[1763580031912,0.002,2890.6,2889.5,0.4935]
[1763580032509,0.4591,2890.6,2889.5,0.4935]
[1763580032714,0.87058247,2890.6,2889.5,0.4935]
[1763580032892,0.4591,2890.6,2889.5,0.4935]
[1763580033893,1.19954124,2890.6,2889.5,0.4935]
[1763580034097,0.4591,2890.6,2889.5,0.4935]
[1763580034406,0.4571,2890.5,2889.2,0.7639]
[1763580034723,0.46590945,2890.4,2889.2,0.7639]
[1763580035019,0.46590945,2890.4,2889.3,0.4935]
[1763580035432,0.74044124,2890.4,2889.3,0.4935]
[1763580035600,0.4571,2890.5,2889.3,0.4935]
[1763580035802,0.74244124,2890.6,2889.4,1.31249664]
[1763580036012,0.002,2890.6,2889.6,0.405504]
[1763580036521,0.002,2890.6,2889.2,0.1514]
[1763580036522,0.002,2890.6,2889.7,0.4935]
[1763580036723,0.4591,2890.6,2889.7,0.4935]
[1763580037324,0.4591,2890.6,2889.4,0.405504]
[1763580037325,0.4591,2890.6,2889.4,0.4935]
[1763580037929,0.69415463,2890.6,2889.5,0.405504]
[1763580038303,0.21445463,2890.6,2889.5,0.405504]
[1763580038525,0.4797,2890.5,2889.5,0.405504]
[1763580039229,0.4797,2890.5,2889.5,0.4795]
[1763580039518,0.21445463,2890.6,2889.5,0.4795]
[1763580039519,0.95489587,2890.6,2889.5,0.4795]
[1763580039720,0.21445463,2890.6,2889.5,0.4795]
[1763580039926,0.002,2890.6,2889.5,0.4795]
[1763580040647,0.4817,2890.6,2889.5,0.4795]
[1763580040925,0.4817,2890.6,2889.2,0.6309]
[1763580041132,0.4817,2890.6,2889.3,0.4795]
[1763580041310,0.4817,2890.6,2889.4,0.405504]
[1763580041716,0.87599574,2890.6,2889.5,0.4795]
[1763580042065,4.68165198,2890.6,2889.4,0.4795]
[1763580042237,1.22014124,2890.5,2889.4,0.4795]
[1763580043038,0.74044124,2890.5,2889.5,0.405504]
[1763580043251,0.4797,2890.5,2889.5,0.405504]
[1763580043412,0.4797,2890.5,2889.5,0.885004]
[1763580044543,0.4797,2890.5,2889.5,0.4795]
[1763580044839,3.93942582,2890.5,2889.2,0.6309]
[1763580045032,1.13458382,2890.4,2889.2,0.6309]
[1763580045236,1.61428382,2890.4,2889.2,0.6309]
[1763580045560,0.4797,2890.4,2889.3,0.4795]
[1763580045765,0.4797,2890.3,2889.3,0.4795]
[1763580046113,0.74276539,2890.5,2889.4,1.31249664]
[1763580046340,0.4797,2890.4,2889.3,0.4795]
[1763580046646,0.4797,2890.4,2889.3,0.5985]
[1763580047537,0.67823944,2890.4,2889.3,0.5985]
[1763580047732,0.46349239,2890.4,2889.3,0.5985]
[1763580048341,1.66777046,2890.6,2889.4,0.405504]
[1763580048509,1.66777046,2890.6,2889.5,0.4795]
[1763580048510,0.74276539,2890.5,2889.5,0.4795]
[1763580048715,0.002,2890.6,2889.5,0.4795]
[1763580049548,0.4797,2890.5,2889.5,0.4795]
[1763580049715,0.69464705,2890.5,2889.5,0.4795]
[1763580050117,0.21494705,2890.5,2889.4,0.405504]
[1763580050324,0.4797,2890.4,2889.3,0.405504]
[1763580050857,0.4797,2890.4,2889.2,0.6309]
[1763580051010,0.4797,2890.4,2889.2,0.1514]
[1763580051011,1.66577046,2890.3,2889.2,0.1514]
[1763580051217,1.90181221,2890.3,2889.2,0.1514]
[1763580051454,0.4797,2890.2,2889.2,0.1514]
[1763580051663,1.22246539,2890.2,2889.2,0.1514]
[1763580051845,0.4797,2890.2,2889.2,0.1514]
[1763580052046,0.4797,2890.1,2889.2,0.1514]
[1763580052222,0.71785122,2890.1,2889.2,0.1514]
[1763580052427,1.46061661,2890.1,2889.2,0.1514]
[1763580052625,0.5688,2889.3,2889.1,0.001]
[1763580052939,0.1812,2889.2,2889.1,0.001]
[1763580053127,0.4797,2889.6,2889.1,0.001]
[1763580053934,0.94799709,2889.6,2889.1,0.001]
[1763580054134,1.22246539,2889.6,2889.1,0.001]
[1763580054358,0.4797,2889.6,2889.1,0.001]
[1763580054525,5.74549267,2890.3,2889.2,0.4795]
[1763580054526,0.74276539,2889.8,2889.2,0.4795]
[1763580054725,4.68267759,2890.0,2889.1,0.001]
[1763580054925,0.74276539,2889.9,2889.1,0.001]
[1763580055136,0.56056827,2889.8,2889.1,0.001]
[1763580055312,1.04026827,2889.8,2889.1,0.001]
[1763580055517,0.4628,2889.2,2889.1,0.001]
[1763580055826,0.74276539,2889.6,2889.1,0.001]
[1763580056043,0.74276539,2889.7,2889.1,0.001]
[1763580056251,0.4797,2889.6,2889.1,0.001]
[1763580057458,0.7421706,2889.9,2889.2,0.6471]
[1763580057638,0.7421706,2890.0,2889.2,0.1676]
[1763580057835,0.4797,2890.0,2889.2,0.1676]
[1763580058036,0.97170484,2890.0,2889.2,0.1676]
[1763580058353,0.4797,2890.0,2889.2,0.1676]
[1763580058724,0.7421706,2890.0,2889.2,0.6471]
[1763580058948,0.23815122,2890.1,2889.2,0.6471]
[1763580059225,0.71785122,2890.1,2889.2,0.6471]
[1763580059438,0.71785122,2890.1,2889.2,0.1676]
[1763580059642,0.4797,2890.0,2889.2,0.1676]
[1763580060027,0.4797,2890.0,2889.1,0.001]
[1763580060269,0.23815122,2890.1,2889.1,0.1686]
[1763580060423,0.4797,2890.0,2889.1,0.1686]
[1763580060624,0.4797,2890.3,2889.2,0.4795]
[1763580061230,1.22143445,2890.3,2889.2,0.4795]
[1763580061654,1.22143445,2890.3,2890.2,0.6455]
[1763580061655,0.74173445,2890.3,2890.2,0.6455]
[1763580061839,0.002,2890.6,2890.2,0.6455]
[1763580062263,0.4628,2890.3,2889.5,0.405504]
[1763580062549,0.4628,2890.3,2889.4,0.4795]
[1763580063443,0.4797,2890.5,2889.4,0.4795]
[1763580064057,0.002,2890.4,2889.4,0.4795]
[1763580064378,0.002,2890.4,2889.1,0.1686]
[1763580064592,4.516304,2889.2,2889.1,0.001]
[1763580064877,4.516304,2889.2,2888.9,0.001]
[1763580064878,4.55499264,2889.1,2888.9,0.001]
[1763580065034,4.55499264,2889.1,2888.6,0.001]
[1763580065035,4.55499264,2888.9,2888.6,0.001]
[1763580065233,1.56129264,2888.7,2888.6,0.001]
[1763580065454,6.67917695,2888.7,2888.6,0.001]
[1763580065654,6.67917695,2888.7,2886.3,8.1890679]
[1763580065655,3.90140255,2888.7,2886.3,8.1890679]
[1763580065963,0.1111,2888.4,2887.2,0.4795]
[1763580066440,0.1111,2888.4,2887.5,0.4795]
[1763580066763,0.5908,2888.4,2887.5,0.4795]
[1763580066973,0.5908,2888.4,2886.4,0.90699264]
[1763580066974,1.51721799,2888.4,2886.4,0.4795]
[1763580067172,0.4548,2887.6,2886.4,0.4795]
[1763580067377,0.72695482,2888.3,2886.4,0.4795]
[1763580067378,0.4797,2888.3,2886.4,0.4795]
[1763580067564,0.1951,2887.9,2886.4,0.4795]
[1763580068083,0.39014026,2888.6,2887.8,0.6575]
[1763580068239,0.1951,2888.7,2887.8,0.6575]
[1763580068978,0.6526,2888.7,2887.8,0.6575]
[1763580069841,0.6526,2888.7,2887.5,0.1822]
[1763580069842,0.4575,2888.6,2887.5,0.1822]
[1763580070638,0.1951,2888.7,2887.6,0.456]
[1763580071086,0.6526,2888.7,2887.6,0.456]
[1763580072089,0.4575,2888.6,2887.6,0.456]
[1763580072856,0.4575,2888.6,2887.5,0.1822]
[1763580073272,0.41143754,2888.5,2887.5,0.1822]
[1763580073682,0.4575,2888.4,2887.5,0.1822]
[1763580074205,0.6526,2888.7,2887.6,0.456]
[1763580074856,0.4575,2888.6,2887.6,0.456]
[1763580075479,1.10039264,2889.1,2887.7,0.03462963]
[1763580075480,0.6509,2888.9,2887.7,0.03462963]
[1763580075684,0.1934,2889.1,2887.8,0.405504]
[1763580075891,0.1934,2889.4,2887.8,0.405504]
[1763580076102,0.1934,2889.4,2887.9,0.456]
[1763580077476,0.6509,2889.4,2887.9,0.456]
[1763580077877,0.4575,2889.3,2887.9,0.456]
[1763580078176,0.75728307,2889.2,2887.9,0.456]
[1763580078594,0.4575,2889.1,2887.9,0.456]
[1763580079812,3.91880888,2889.1,2887.9,0.456]
[1763580080113,3.91880289,2889.1,2887.9,0.456]
[1763580080314,0.1934,2889.4,2887.9,0.456]
[1763580080315,0.4575,2889.0,2887.9,0.456]
[1763580080892,0.3918807,2888.9,2887.9,0.456]
[1763580081107,0.002,2889.1,2888.0,0.405504]
[1763580081432,0.002,2889.1,2888.1,0.6382]
[1763580081797,0.002,2889.1,2888.1,0.1822]
[1763580081993,0.002,2889.1,2888.2,0.456]
[1763580084241,0.002,2889.1,2888.3,0.405504]
[1763580084639,0.002,2889.1,2888.4,0.456]
[1763580085439,0.002,2889.1,2889.0,0.4555]
[1763580085639,0.002,2889.1,2888.4,1.36299264]
[1763580085841,0.002,2889.1,2888.4,0.4869]
[1763580086904,0.002,2889.1,2888.1,0.1822]
[1763580087248,0.4684,2889.1,2887.5,0.6691]
[1763580087448,0.002,2889.1,2887.6,8.7949679]
[1763580087806,0.002,2889.1,2887.7,1.79939664]
[1763580088203,0.002,2889.1,2887.9,0.405504]
[1763580088434,0.002,2889.1,2888.0,0.4869]
[1763580088908,0.002,2889.1,2888.2,0.405504]
[1763580089555,0.002,2889.1,2888.2,0.892404]
[1763580089844,0.002,2889.1,2888.3,0.4869]
[1763580090264,0.002,2889.1,2888.4,0.405504]
[1763580090469,0.002,2889.1,2889.0,0.4555]
[1763580092126,0.002,2889.1,2888.6,0.405504]
[1763580092571,0.002,2889.1,2888.1,0.181]
[1763580092722,0.002,2889.1,2888.2,0.4869]
[1763580092917,0.002,2889.1,2888.3,0.405504]
[1763580093357,0.002,2889.1,2888.4,0.405504]
[1763580093561,0.002,2889.1,2889.0,0.4555]
[1763580093936,0.002,2889.1,2889.0,0.9424]
[1763580095066,0.002,2889.1,2889.0,1.347904]
[1763580098362,0.002,2889.1,2889.0,0.4555]
[1763580098660,0.002,2889.1,2889.0,0.9436]
[1763580099395,0.002,2889.1,2888.7,0.405504]
[1763580099602,0.002,2889.1,2889.0,0.481]
[1763580100013,0.002,2889.1,2888.4,0.4881]
[1763580100376,0.002,2889.1,2888.4,0.6071]
[1763580100564,0.002,2889.1,2888.5,0.405504]
[1763580100764,0.002,2889.1,2888.3,0.001]
[1763580100964,0.002,2889.1,2889.0,0.481]
[1763580101264,0.002,2889.1,2888.6,0.4881]
[1763580102665,0.002,2889.1,2888.3,0.001]
[1763580102865,0.002,2889.1,2888.4,0.4881]
[1763580103105,0.002,2889.1,2888.5,0.405504]
[1763580103521,0.002,2889.1,2889.0,0.481]
[1763580103993,0.002,2889.1,2889.0,0.9691]
[1763580104191,0.002,2889.1,2889.0,1.374604]
[1763580104772,0.002,2889.1,2889.0,0.886504]
[1763580105605,0.002,2889.1,2889.0,1.374604]
[1763580106267,0.002,2889.1,2889.0,10.47066454]
[1763580106471,0.002,2889.4,2889.0,10.47066454]
[1763580106472,0.002,2890.6,2889.7,0.405504]
[1763580106679,0.002,2890.6,2890.3,1.068704]
[1763580106844,0.002,2890.6,2890.3,1.187704]
[1763580107044,0.002,2890.6,2890.3,1.675804]
[1763580107549,0.002,2890.6,2890.3,1.187704]
[1763580107855,0.002,2890.6,2890.1,0.1822]
[1763580108061,0.4962,2890.4,2889.9,0.1822]
[1763580108259,0.4962,2890.4,2889.5,0.524504]
[1763580108641,0.4962,2890.4,2889.5,1.012604]
[1763580108994,0.4962,2890.4,2889.5,0.119]
[1763580109173,0.9885,2890.4,2889.5,0.119]
[1763580109668,0.9885,2890.4,2889.6,0.405504]
[1763580109842,0.002,2890.4,2889.6,1.80059664]
[1763580110271,0.002,2890.4,2889.8,0.405504]
[1763580110833,0.002,2890.4,2890.0,0.405504]
[1763580111680,0.002,2890.4,2889.9,0.119]
[1763580112754,0.4943,2890.4,2889.9,0.119]
[1763580112969,0.002,2890.4,2889.9,0.119]
[1763580113279,0.002,2890.4,2889.9,0.6071]
[1763580113567,0.002,2890.4,2890.3,1.068704]
[1763580113766,0.002,2890.4,2890.3,0.6632]
[1763580113971,0.002,2890.4,2889.4,0.4881]
[1763580113972,0.9885,2890.4,2889.4,0.4881]
[1763580114267,0.4962,2890.4,2889.0,7.66952004]
[1763580114472,0.4923,2890.3,2889.0,0.4881]
[1763580114670,0.4923,2890.3,2888.7,8.15762004]
[1763580114882,0.4923,2890.3,2888.4,0.4881]
[1763580115039,0.74138042,2890.2,2888.7,7.66952004]
[1763580115235,0.4923,2890.3,2888.9,0.405504]
[1763580115459,0.4923,2890.2,2888.8,1.39509264]
[1763580115848,0.4923,2890.2,2888.8,0.4881]
[1763580116348,0.4923,2890.2,2888.9,0.405504]
[1763580116972,0.81281569,2890.2,2888.9,0.405504]
[1763580117183,0.4923,2890.1,2888.9,0.405504]
[1763580118181,0.4923,2890.1,2888.9,0.406504]
[1763580120291,0.4923,2890.1,2888.9,0.001]
[1763580120489,7.73340877,2890.1,2888.9,0.001]
[1763580120692,0.4942,2889.0,2888.9,0.001]
[1763580120847,0.5614,2889.0,2888.9,0.001]
[1763580121265,1.0537,2889.0,2888.9,0.001]
[1763580121689,1.37470774,2889.0,2888.9,0.001]
[1763580122005,1.37470774,2889.0,2886.6,0.4881]
[1763580122006,0.4778,2888.4,2886.6,0.4881]
[1763580122201,0.1997,2888.1,2886.6,0.4881]
[1763580122349,3.66218398,2888.1,2886.6,0.4881]
[1763580122557,3.66218398,2888.1,2886.5,0.001]
[1763580122558,9.4706246,2888.1,2886.5,0.001]
[1763580122789,2.47651,2888.0,2886.5,0.001]
[1763580123107,0.6905,2887.9,2886.5,8.15862004]
[1763580123254,0.6905,2887.9,2886.6,1.39509264]
[1763580123472,0.1982,2887.9,2887.0,0.90699264]
[1763580124009,0.4923,2887.8,2887.1,0.1842]
[1763580124353,0.1982,2887.9,2887.1,0.1842]
[1763580124680,0.1982,2887.9,2886.6,0.90699264]
[1763580124681,0.6905,2887.9,2886.6,0.90699264]
[1763580124890,0.1982,2887.9,2886.8,0.405504]
[1763580125095,0.4923,2887.8,2886.8,0.405504]
[1763580125300,0.4923,2887.8,2886.9,0.405504]
[1763580125594,0.1982,2887.9,2886.9,0.405504]
[1763580125901,0.1982,2887.9,2887.0,0.405504]
[1763580126206,0.4923,2888.1,2887.0,0.405504]
[1763580126207,0.4923,2888.1,2887.0,1.31249664]
[1763580126495,0.4923,2888.1,2887.2,0.405504]
[1763580126695,0.4923,2888.1,2887.1,0.6723]
[1763580126696,0.4923,2888.1,2887.1,0.1842]
[1763580126896,0.4923,2888.1,2886.9,0.405504]
[1763580128022,0.4923,2888.1,2886.5,0.406504]
[1763580128227,0.4923,2888.1,2887.0,0.405504]
[1763580128712,0.4923,2888.1,2887.1,0.1842]
[1763580130823,0.4923,2888.1,2886.6,0.5951]
[1763580131030,0.4923,2888.1,2886.7,0.405504]
[1763580131222,0.4923,2888.1,2886.9,0.405504]
[1763580131531,3.95478826,2888.1,2886.4,1.38309264]
[1763580131685,0.76153566,2888.0,2886.5,0.406504]
[1763580131887,1.25493566,2888.0,2886.5,0.882604]
[1763580132102,0.4934,2887.9,2886.5,0.882604]
[1763580132310,0.1982,2888.2,2886.7,8.07502404]
[1763580132504,0.4934,2888.4,2887.2,1.31249664]
[1763580132753,0.1939,2888.5,2887.4,0.405504]
[1763580132922,0.4934,2888.8,2887.7,0.405504]
[1763580133239,0.0672,2889.0,2887.7,0.405504]
[1763580133463,0.0672,2889.0,2887.9,0.405504]
[1763580133600,0.4934,2889.1,2887.9,0.405504]
[1763580133790,0.4934,2889.1,2888.1,0.405504]
[1763580134193,0.4934,2889.1,2888.2,0.181]
[1763580134602,0.4934,2889.1,2887.6,1.38309264]
[1763580134886,3.95471334,2889.1,2887.7,0.405504]
[1763580135087,0.41486133,2889.0,2887.7,0.405504]
[1763580135427,0.002,2888.1,2887.8,0.405504]
[1763580135801,0.002,2888.1,2887.3,0.3032]
[1763580135802,0.002,2888.1,2888.0,0.888304]
[1763580136190,0.002,2888.1,2888.0,1.364404]
[1763580136730,0.002,2888.1,2888.0,2.27139664]
[1763580137646,0.002,2888.1,2888.0,0.405504]
[1763580137999,0.002,2888.1,2887.7,0.405504]
[1763580138207,0.002,2888.1,2888.0,0.4828]
[1763580138431,0.002,2888.1,2888.0,0.9589]
[1763580138742,0.002,2888.1,2888.0,1.364404]
[1763580139103,0.002,2888.1,2888.0,2.27139664]
[1763580140242,0.002,2888.1,2888.0,2.39039664]
[1763580141134,0.002,2888.1,2888.0,2.27139664]
[1763580141432,0.002,2888.1,2888.0,1.364404]
[1763580142203,0.002,2888.1,2888.0,0.888304]
[1763580142399,0.002,2888.1,2888.0,1.364404]
[1763580143014,0.002,2888.1,2888.0,0.888304]
[1763580143547,0.002,2888.1,2888.0,1.364404]
[1763580144738,0.002,2888.1,2888.0,1.79529664]
[1763580144939,0.002,2888.1,2888.0,0.888304]
[1763580145155,0.002,2888.1,2888.0,1.385204]
[1763580146053,0.002,2888.1,2888.0,0.888304]
[1763580146937,0.002,2888.1,2888.0,1.385204]
[1763580147656,0.002,2888.1,2888.0,0.888304]
[1763580148019,0.002,2888.1,2888.0,1.385204]
[1763580148858,0.002,2888.1,2888.0,2.29219664]
[1763580150753,0.002,2888.1,2888.0,1.31249664]
[1763580150952,0.002,2888.1,2888.0,0.466]
[1763580151194,0.002,2888.1,2888.0,0.871504]
[1763580151375,0.002,2888.1,2888.0,0.466]
[1763580151703,0.002,2888.1,2888.0,0.871504]
[1763580151874,0.002,2888.1,2888.0,1.368404]
[1763580152387,0.002,2888.1,2888.0,0.871504]
[1763580152606,0.002,2888.1,2888.0,0.405504]
[1763580153093,0.002,2888.1,2888.0,0.871504]
[1763580153388,0.002,2888.1,2888.0,1.368404]
[1763580153569,0.002,2888.1,2888.0,0.406504]
[1763580153770,0.002,2888.1,2888.0,0.872504]
[1763580153961,0.002,2888.1,2888.0,1.369404]
[1763580154659,0.002,2888.1,2888.0,0.872504]
[1763580155304,0.4941,2888.1,2888.0,0.406504]
[1763580155457,0.9796,2888.1,2888.0,0.001]
[1763580158784,0.94497397,2888.1,2888.0,0.001]
[1763580160129,0.93097397,2888.1,2888.0,0.001]
[1763580162181,1.69114672,2888.1,2888.0,0.001]
[1763580162484,2.4303055,2888.1,2888.0,0.001]
[1763580162691,6.0783055,2888.1,2888.0,0.001]
[1763580162894,2.4303055,2888.1,2888.0,0.001]
[1763580163115,1.67013275,2888.1,2888.0,0.001]
[1763580163417,1.99149865,2888.1,2888.0,0.001]
[1763580163710,1.67013275,2888.1,2888.0,0.001]
[1763580163878,0.93097397,2888.1,2888.0,0.001]
[1763580164090,1.25235855,2888.1,2888.0,0.001]
[1763580164285,0.93097397,2888.1,2888.0,0.001]
[1763580165782,0.45947397,2888.1,2888.0,0.001]
[1763580166002,0.93097397,2888.1,2888.0,0.001]
[1763580166197,0.45947397,2888.1,2888.0,0.001]
[1763580166378,0.9258,2888.1,2888.0,0.001]
[1763580167210,1.24762149,2888.1,2888.0,0.001]
[1763580167411,1.44642601,2888.1,2888.0,0.001]
[1763580167807,2.18684973,2888.1,2888.0,0.001]
[1763580169599,5.64933371,2888.1,2888.0,0.001]
[1763580170101,6.57026094,2888.1,2888.0,0.001]
[1763580170293,13.4952289,2888.1,2887.7,0.001]
[1763580170499,0.237,2887.8,2887.7,0.001]
[1763580170900,1.03032149,2887.8,2887.7,0.001]
[1763580171686,1.77074521,2887.8,2887.7,0.001]
[1763580172088,1.03032149,2887.8,2887.7,0.001]
[1763580172287,1.77074521,2887.8,2887.7,0.001]
[1763580172518,1.94781973,2887.8,2887.7,0.001]
[1763580172685,1.94781973,2887.8,2886.5,0.001]
[1763580172686,0.6352,2886.6,2885.9,0.405504]
[1763580172885,0.6352,2886.6,2885.1,0.13883851]
[1763580172886,0.4467,2886.0,2885.1,0.13883851]
[1763580173133,4.55499264,2886.4,2884.8,0.181]
[1763580173134,0.1038,2885.9,2884.8,0.181]
[1763580173290,0.1038,2885.9,2884.9,0.53426324]
[1763580173291,0.4715,2885.8,2884.9,0.53426324]
[1763580175006,0.6564,2885.9,2884.9,0.4496]
[1763580175223,0.1849,2885.9,2884.9,0.4496]
[1763580175423,0.1849,2885.9,2885.0,0.03466204]
[1763580175726,0.1849,2885.9,2884.9,0.4496]
[1763580176925,0.6564,2885.9,2884.9,0.4496]
[1763580178113,0.1849,2885.9,2885.0,0.405504]
[1763580178319,0.1849,2885.9,2885.2,0.405504]
[1763580178793,0.4543,2885.3,2884.8,0.181]
[1763580178994,0.4543,2885.3,2884.5,0.05736191]
[1763580178995,0.4543,2884.9,2884.5,0.05736191]
[1763580179195,0.4715,2885.7,2884.5,0.05736191]
[1763580180098,3.93688686,2885.7,2884.5,0.05736191]
[1763580180311,0.39368869,2885.6,2884.5,0.55696191]
[1763580180505,0.4715,2885.6,2884.6,0.405504]
[1763580180711,1.33751244,2885.6,2884.5,0.05736191]
[1763580180906,0.4543,2884.6,2884.5,0.05736191]
[1763580181730,0.4715,2884.9,2884.5,0.05736191]
[1763580181918,0.4543,2884.6,2884.5,0.05736191]
[1763580182323,0.4715,2884.9,2884.5,0.05736191]
[1763580183046,3.46549936,2885.6,2884.5,0.05736191]
[1763580183242,0.90699264,2885.8,2884.5,0.05736191]
[1763580183243,0.4543,2884.6,2884.5,0.05736191]
[1763580184752,0.4715,2884.9,2884.5,0.05736191]
[1763580185054,0.4543,2884.6,2884.5,0.05736191]
[1763580185552,0.9258,2884.6,2884.5,0.05736191]
[1763580186409,5.29947779,2884.6,2884.5,0.05736191]
[1763580186609,2.53466612,2884.6,2884.5,0.05736191]
[1763580186842,0.9258,2884.6,2884.5,0.05736191]
[1763580187458,0.4543,2884.6,2884.5,0.05736191]
[1763580187851,0.9109,2884.6,2884.5,0.05736191]
[1763580188380,0.4543,2884.6,2884.5,0.05736191]
[1763580188550,8.20500129,2885.7,2884.5,1.01186191]
[1763580188551,1.1875381,2885.3,2884.5,1.01186191]
[1763580188754,0.66740066,2885.3,2884.5,0.53686191]
[1763580188950,4.55770058,2885.8,2884.5,0.53686191]
[1763580188951,0.4566,2885.8,2884.6,0.880504]
[1763580189151,0.4566,2885.8,2884.6,0.405504]
[1763580189350,0.4566,2885.8,2884.8,0.405504]
[1763580189813,1.0128774,2885.8,2884.5,0.05736191]
[1763580190002,0.459,2884.9,2884.5,0.05736191]
[1763580190355,0.1884,2884.6,2884.5,0.05736191]
[1763580190873,0.4566,2885.0,2884.5,0.05736191]
[1763580191052,3.46573086,2885.4,2884.5,0.05736191]
[1763580191053,0.459,2884.6,2884.5,0.05736191]
[1763580191254,1.0152774,2884.6,2883.7,0.002]
[1763580191462,0.1316,2884.4,2883.7,0.002]
[1763580191662,1.50325478,2884.4,2883.7,0.002]
[1763580191862,0.77084284,2884.4,2883.7,0.002]
[1763580192172,1.50257734,2884.4,2883.7,0.002]
[1763580192486,4.96950287,2884.4,2883.7,0.002]
[1763580193378,7.11392561,2884.4,2883.7,0.002]
[1763580193580,6.19345709,2884.4,2883.7,0.002]
[1763580193793,7.10665393,2884.4,2883.7,0.002]
[1763580194299,6.59896109,2884.4,2883.7,0.002]
[1763580194596,7.51098899,2884.4,2883.7,0.002]
[1763580194986,0.405504,2884.1,2883.7,0.002]
[1763580195187,3.37954254,2883.8,2883.7,0.002]
[1763580195423,5.37052856,2883.8,2883.7,0.002]
[1763580195617,6.38340596,2883.8,2883.0,1.0]
[1763580195769,0.1183,2883.5,2883.0,1.0]
[1763580196106,0.80981988,2883.5,2883.0,1.0]
[1763580196424,8.19748871,2883.5,2883.0,1.0]
[1763580196602,1.35929264,2883.4,2883.0,1.0]
[1763580196919,0.91077181,2883.3,2883.0,1.0]
[1763580197067,0.6498,2883.8,2883.1,0.1942]
[1763580197068,1.56057181,2883.8,2883.1,0.1942]
[1763580197264,0.729215,2883.7,2883.0,1.0]
[1763580197579,0.459,2883.1,2883.0,1.0]
[1763580198096,2.54888598,2883.1,2883.0,1.0]
[1763580198267,0.91278058,2883.1,2883.0,1.0]
[1763580198472,5.29686935,2883.1,2883.0,1.0]
[1763580198794,6.67745406,2883.1,2883.0,1.0]
[1763580199103,3.20896529,2883.1,2883.0,1.0]
[1763580199290,6.08199331,2883.1,2883.0,1.0]
[1763580199901,2.61350454,2883.1,2883.0,1.0]
[1763580200216,2.61163813,2883.1,2883.0,1.0]
[1763580200369,0.91360683,2883.2,2883.0,1.4795]
[1763580200566,0.91360683,2883.8,2883.2,0.6737]
[1763580200779,1.64527297,2884.0,2883.3,0.4795]
[1763580200980,0.73166614,2883.9,2883.3,0.4795]
[1763580201170,0.91360683,2883.9,2883.2,0.6692]
[1763580201392,0.91360683,2883.9,2883.3,0.475]
[1763580201595,1.64527297,2884.0,2883.3,0.475]
[1763580201904,0.91360683,2884.0,2883.3,0.475]
[1763580202104,1.64527297,2884.0,2883.3,0.475]
[1763580202306,1.64527297,2883.9,2883.3,0.475]
[1763580202491,0.73166614,2883.8,2883.3,0.475]
[1763580202694,0.73166614,2883.8,2883.4,0.405504]
[1763580202900,0.73166614,2884.0,2883.7,0.4795]
[1763580203073,0.7327416,2884.0,2883.9,0.4795]
[1763580203275,0.7327416,2884.3,2883.9,0.4795]
[1763580203471,2.10294843,2884.2,2883.3,0.475]
[1763580203670,0.7327416,2884.1,2883.2,0.1942]
[1763580203900,1.64634843,2884.0,2883.3,0.475]
[1763580204117,0.7327416,2883.9,2883.3,0.475]
[1763580204287,0.5644,2883.4,2883.0,1.0]
[1763580204619,1.21682773,2883.1,2883.0,1.0]
[1763580204778,1.44726781,2883.1,2883.0,1.0]
[1763580205290,1.44726277,2883.1,2883.0,1.0]
[1763580205913,2.66902635,2883.1,2883.0,1.0]
[1763580206212,0.7327416,2883.1,2883.0,1.0]
[1763580206646,0.7327416,2883.1,2883.0,1.001]